bitfinex-derivatives/quotes_ETHF0:USTF0_20250727
["timestamp","ask_amount","ask_price","bid_price","bid_amount"]
[1753654307748,1.18084,3848.5,3848.4,1.4553]
[1753654307949,22.23684,3848.5,3848.4,1.4553]
[1753654308143,0.71111,3848.0,3847.9,0.764]
[1753654308355,22.46711,3848.0,3847.9,0.4963]
[1753654308655,22.46711,3848.0,3847.8,0.19231519]
[1753654308656,1.41112,3847.9,3847.8,0.19231519]
[1753654308855,4.61892,3847.9,3847.8,0.19231519]
[1753654310958,0.99236,3846.9,3846.8,0.2849]
[1753654311154,0.1915,3846.4,3846.3,1.1876]
[1753654311351,22.24212,3846.4,3846.3,1.4553]
[1753654311551,22.05342,3846.4,3846.3,1.8865]
[1753654311753,1.41134,3846.3,3846.2,0.01819955]
[1753654312252,0.92059,3845.9,3845.8,0.1924152]
[1753654312459,25.22239,3845.9,3845.8,0.1924152]
[1753654312755,3.91639,3845.9,3845.8,1.3149152]
[1753654313060,21.80159,3845.9,3845.8,1.8348152]
[1753654313555,21.80159,3845.9,3845.8,1.3149152]
[1753654313857,21.2817,3845.9,3845.8,1.8348152]
[1753654314056,21.2817,3845.9,3845.8,1.3149152]
[1753654314057,21.80159,3845.9,3845.8,1.3149152]
[1753654314757,21.80159,3845.9,3845.8,0.4773152]
[1753654315155,21.80159,3845.9,3845.8,1.8348152]
[1753654315355,22.27419,3845.9,3845.8,1.8348152]
[1753654316958,22.27419,3845.9,3845.8,2.0281152]
[1753654317159,21.7543,3845.9,3845.8,2.0281152]
[1753654317456,22.27419,3845.9,3845.8,2.5988152]
[1753654318559,21.7543,3845.9,3845.8,2.5988152]
[1753654318758,22.27419,3845.9,3845.8,0.4773152]
[1753654318961,0.2057,3845.4,3845.3,1.3461]
[1753654319164,21.5716,3845.4,3845.3,2.12577]
[1753654319465,21.7536,3845.4,3845.3,1.6058]
[1753654319660,21.7536,3845.4,3845.3,1.9132]
[1753654319960,0.51998,3845.3,3845.0,1.25971]
[1753654320162,0.6506,3845.1,3845.0,1.9132]
[1753654320360,1.1706,3845.1,3845.0,1.9132]
[1753654320659,1.3775,3845.1,3845.0,0.3074]
[1753654320856,1.1706,3845.1,3845.0,1.9132]
[1753654321168,1.17054,3845.6,3845.5,1.9132]
[1753654321370,22.27054,3845.6,3845.5,1.471]
[1753654321561,22.27054,3845.6,3845.5,1.062]
[1753654321756,22.47744,3845.6,3845.2,0.8512]
[1753654321958,1.19551,3845.0,3844.9,0.3074]
[1753654322160,1.19551,3845.0,3844.6,0.9662]
[1753654322161,0.182,3844.9,3844.6,0.9662]
[1753654322466,0.4686,3844.5,3844.4,0.6064]
[1753654322653,21.5756,3844.5,3844.4,0.9138]
[1753654322860,21.5756,3844.5,3844.4,1.2113]
[1753654323058,3.3898,3844.9,3844.8,0.52004]
[1753654323362,21.3277,3844.9,3844.8,2.43324]
[1753654323664,0.182,3845.6,3845.0,1.9132]
[1753654323964,40.6488,3845.7,3845.6,1.27453]
[1753654324269,21.126,3845.7,3845.6,3.72773]
[1753654324461,21.126,3845.7,3845.6,1.67853]
[1753654327865,21.126,3845.7,3845.6,2.43313]
[1753654330366,21.7766,3845.7,3845.6,2.43313]
[1753654330566,21.5946,3845.7,3845.6,2.43313]
[1753654331664,24.38123915,3845.7,3845.6,0.3074]
[1753654331860,23.86131915,3845.7,3845.6,0.82733]
[1753654332066,23.1548598,3845.7,3845.6,0.82733]
[1753654332266,21.126,3845.7,3845.4,1.6058]
[1753654332471,21.126,3845.7,3845.6,2.43313]
[1753654332666,3.3898,3846.4,3846.3,0.51984]
[1753654332875,24.3168,3846.4,3846.3,2.43304]
[1753654333369,21.109,3846.4,3846.3,2.43304]
[1753654333873,21.109,3846.4,3845.8,1.29974]
[1753654333874,3.2078,3846.8,3846.7,2.43298]
[1753654334175,25.05374369,3846.8,3846.7,2.43298]
[1753654334574,21.84594369,3846.8,3846.7,2.43298]
[1753654335474,21.139,3846.8,3846.7,2.43298]
[1753654341076,0.6506,3847.5,3847.4,1.9132]
[1753654341379,0.2,3847.9,3847.8,1.07683]
[1753654341570,21.324,3847.9,3847.8,2.43283]
[1753654342078,3.2078,3848.6,3848.5,2.43274]
[1753654342275,24.56105554,3848.6,3848.5,2.43274]
[1753654342474,24.7044,3848.6,3848.5,2.43274]
[1753654342780,24.5365,3848.6,3848.5,2.43274]
[1753654344077,24.7044,3848.6,3848.5,2.43274]
[1753654344874,21.7595,3848.6,3848.5,2.43274]
[1753654345774,3.945,3849.0,3848.9,2.43268]
[1753654345975,25.049,3849.0,3848.9,2.43268]
[1753654346279,22.0091,3849.0,3848.9,2.43268]
[1753654346480,22.1911,3849.0,3848.9,2.43268]
[1753654347271,21.104,3849.0,3848.9,2.43268]
[1753654351074,0.9106,3849.3,3849.2,1.29084]
[1753654351276,0.9106,3849.3,3849.2,2.44484]
[1753654351684,1.0779,3849.3,3849.2,2.44484]
[1753654352885,1.59733,3849.3,3849.2,2.44484]
[1753654353088,1.0779,3849.3,3849.2,2.44484]
[1753654353282,22.1569,3849.3,3849.2,2.44484]
[1753654354486,22.88393,3849.3,3849.2,1.43374]
[1753654354675,22.3645,3849.3,3849.2,0.82054]
[1753654355088,21.974,3849.3,3849.2,2.44484]
[1753654355282,21.8067,3849.3,3849.2,2.44484]
[1753654355483,21.8067,3849.3,3849.2,1.43374]
[1753654355682,22.1569,3849.3,3849.2,2.44484]
[1753654358182,21.097,3849.3,3849.2,2.44484]
[1753654359077,0.018,3849.3,3849.2,2.44484]
[1753654360586,0.2,3849.9,3849.8,0.51936]
[1753654360788,0.2,3849.9,3849.8,2.44476]
[1753654361083,0.2,3849.9,3849.8,7.44476]
[1753654361485,0.2,3849.9,3849.8,2.44476]
[1753654361788,21.063,3850.6,3850.5,1.29067]
[1753654362085,21.9057,3850.6,3850.5,2.44467]
[1753654362587,21.063,3850.6,3850.5,2.44467]
[1753654364588,0.7275,3851.0,3850.9,0.51922]
[1753654364789,22.5108,3851.0,3850.9,0.82032]
[1753654364983,21.9916,3851.0,3850.9,0.82032]
[1753654365183,22.5364,3851.0,3850.9,0.82032]
[1753654365784,22.5364,3851.0,3850.9,1.43352]
[1753654365985,0.4754,3851.0,3850.9,2.00002]
[1753654366291,3.2078,3851.2,3851.1,2.44459]
[1753654366495,4.0502,3851.2,3851.1,2.44459]
[1753654366684,4.3023,3851.2,3851.1,2.44459]
[1753654367086,1.0945,3851.2,3851.1,2.44459]
[1753654367389,1.2723,3851.2,3851.1,2.44459]
[1753654368389,1.99557,3851.2,3851.1,0.3011]
[1753654368695,1.4764,3851.0,3850.9,0.51922]
[1753654369090,1.9956,3851.0,3850.9,0.51922]
[1753654369592,1.2864,3850.4,3850.3,0.82039]
[1753654369788,22.3273,3850.4,3850.3,2.44469]
[1753654369986,21.055,3850.4,3850.3,2.44469]
[1753654370183,1.2723,3851.1,3851.0,2.4446]
[1753654370389,22.1495,3851.1,3851.0,2.4446]
[1753654370785,3.5748,3851.5,3851.4,1.154]
[1753654370995,22.3273,3851.5,3851.4,2.44455]
[1753654371194,22.3273,3851.5,3851.4,1.99995]
[1753654371397,23.01559611,3851.5,3851.4,2.44455]
[1753654372091,22.1495,3851.5,3851.4,2.44455]
[1753654372691,22.3273,3851.5,3851.4,2.44455]
[1753654373496,23.01590317,3851.5,3851.4,2.44455]
[1753654373697,22.3273,3851.5,3851.4,2.44455]
[1753654373999,23.01589492,3851.5,3851.4,2.44455]
[1753654374588,22.3273,3851.5,3851.4,2.44455]
[1753654375892,22.5314,3851.5,3851.4,1.99995]
[1753654376292,23.05053,3851.5,3851.4,1.99995]
[1753654376694,26.25833,3851.5,3851.4,1.99995]
[1753654376893,25.7392,3851.5,3851.4,1.99995]
[1753654377098,26.25833,3851.5,3851.4,1.99995]
[1753654377299,4.4801,3851.5,3851.4,2.44455]
[1753654377500,4.3023,3851.5,3851.4,2.44455]
[1753654378101,4.4739,3851.5,3851.4,2.44455]
[1753654378502,4.6779,3851.5,3851.4,1.99995]
[1753654379497,1.5158,3851.1,3850.8,0.3783]
[1753654379799,1.5158,3850.8,3850.7,0.51924]
[1753654379999,1.5158,3850.8,3850.7,0.80064]
[1753654380497,1.3118,3850.8,3850.7,1.56034]
[1753654380692,1.1402,3850.9,3850.8,1.27893]
[1753654380896,22.3618,3850.9,3850.8,1.27893]
[1753654381097,1.5158,3850.9,3850.8,1.27893]
[1753654381292,22.1912,3850.9,3850.8,2.39013]
[1753654381595,21.051,3850.9,3850.8,2.39013]
[1753654381902,4.86715,3851.4,3851.3,1.8709]
[1753654382094,1.1092,3851.1,3851.0,1.434]
[1753654382298,1.5158,3851.1,3851.0,0.2814]
[1753654382604,4.5196,3851.4,3851.3,2.39006]
[1753654382896,4.548,3851.9,3851.8,0.51909]
[1753654383103,2.03932245,3851.9,3851.8,2.38999]
[1753654383807,1.3402,3851.9,3851.8,2.38999]
[1753654383999,0.2,3851.9,3851.8,2.38999]
[1753654384598,1e-05,3851.9,3851.8,2.38999]
[1753654384800,4.5376,3853.3,3853.2,1.4194]
[1753654385001,5.23678472,3853.3,3853.2,1.4194]
[1753654385299,0.51891,3853.2,3852.7,0.3783]
[1753654385501,0.204,3852.7,3852.2,0.3783]
[1753654385700,3.7953,3852.9,3852.8,0.1979]
[1753654385904,0.3849,3853.4,3853.2,0.3783]
[1753654386107,0.3849,3853.4,3852.2,3.2078]
[1753654386108,3.2078,3853.5,3853.3,1.4194]
[1753654386295,3.2078,3853.5,3853.4,1.8709]
[1753654386606,3.90649931,3853.5,3853.4,2.38978]
[1753654386906,5.23629931,3853.5,3853.4,1.5745]
[1753654387094,5.23629931,3853.5,3853.4,1.8709]
[1753654387296,4.5376,3853.5,3853.4,1.8709]
[1753654387806,3.2078,3853.5,3853.4,2.38978]
[1753654388601,0.5849,3853.9,3853.8,1.27852]
[1753654388799,0.5849,3853.9,3853.8,1.8709]
[1753654389006,1.28315377,3853.9,3853.8,1.8709]
[1753654389301,0.7875,3853.9,3853.8,1.8709]
[1753654389500,0.9733,3853.9,3853.4,0.4515]
[1753654389695,1.3298,3853.6,3853.5,0.6597]
[1753654389900,1.84865,3853.6,3853.5,0.6597]
[1753654390303,1.84871,3853.2,3853.1,1.138]
[1753654390705,5.05651,3853.2,3853.1,1.138]
[1753654390904,5.05651,3853.2,3853.1,0.2814]
[1753654391100,1.84876,3852.8,3852.7,0.3783]
[1753654391606,1.84876,3852.8,3852.7,0.8576]
[1753654391808,1.3298,3852.8,3852.7,1.123]
[1753654392108,1.3298,3852.8,3852.7,1.8709]
[1753654393003,0.3849,3853.0,3852.8,1.1112]
[1753654393197,1.3298,3853.5,3853.4,1.2112]
[1753654393403,0.3849,3853.7,3853.4,0.7597]
[1753654393704,0.5875,3853.7,3853.6,1.8709]
[1753654393909,1.1582,3853.7,3853.6,1.8709]
[1753654394103,1.84864,3853.7,3853.6,1.8709]
[1753654394298,1.84864,3853.7,3853.6,1.123]
[1753654394501,1.3298,3853.7,3853.6,1.123]
[1753654394708,1.84864,3853.7,3853.6,1.123]
[1753654394903,1.84864,3853.7,3853.6,0.2814]
[1753654395104,2.05264,3853.7,3853.6,0.2814]
[1753654395301,2.05269,3853.3,3853.2,0.2814]
[1753654395508,1.3298,3853.3,3853.2,2.38981]
[1753654395806,1.1582,3853.3,3853.2,2.38981]
[1753654396007,1.1582,3853.3,3853.2,1.8709]
[1753654396513,1.84869,3853.3,3853.2,1.8709]
[1753654397011,1.84869,3853.3,3853.2,2.38981]
[1753654397204,1.84869,3853.3,3853.2,1.8709]
[1753654399003,4.68226,3853.6,3853.5,0.51887]
[1753654399210,4.88486,3853.6,3853.5,1.86483657]
[1753654399409,3.2078,3853.6,3853.5,2.38370657]
[1753654399808,0.5849,3853.9,3853.8,0.51883]
[1753654400009,1.0892,3853.9,3853.8,2.38973]
[1753654400912,0.2,3853.9,3853.8,2.38973]
[1753654401112,0.4026,3853.9,3853.8,2.38973]
[1753654401313,0.2,3853.9,3853.8,2.38973]
[1753654403411,0.018,3855.3,3854.8,2.38959]
[1753654403412,3.5927,3854.9,3854.8,2.38959]
[1753654403616,3.2078,3854.9,3854.8,2.38959]
[1753654404411,0.4388,3855.2,3855.1,0.51865]
[1753654404618,0.018,3855.3,3855.2,2.38954]
[1753654406314,3.4078,3855.9,3855.7,1.8709]
[1753654406516,1.25906,3855.8,3855.7,1.2112]
[1753654406719,0.9431,3855.8,3855.7,1.2112]
[1753654406917,0.9431,3855.8,3855.7,1.8709]
[1753654407114,0.3017,3855.8,3855.7,2.38947]
[1753654407322,3.4078,3855.9,3855.8,1.27826]
[1753654407524,3.4078,3855.9,3855.8,2.38946]
[1753654407821,3.92634,3855.9,3855.8,1.8709]
[1753654408021,4.89524,3855.9,3855.8,1.8709]
[1753654408211,5.53794,3855.9,3855.8,0.2814]
[1753654408410,1.0115,3855.5,3855.4,1.5823]
[1753654408616,0.9575,3855.5,3855.4,2.10091]
[1753654408915,0.9575,3855.5,3855.4,1.8716]
[1753654409124,5.3226,3855.5,3855.4,0.2893]
[1753654409419,1.49639,3855.9,3855.6,2.39018]
[1753654409420,1.2225,3855.7,3855.6,2.39018]
[1753654409619,3.711,3855.9,3855.8,1.25676]
[1753654409820,4.3653,3855.9,3855.8,2.39016]
[1753654410219,5.004,3855.9,3855.4,0.8441]
[1753654410419,5.004,3855.9,3855.0,2.10096]
[1753654410420,1.3921,3855.1,3855.0,2.10096]
[1753654410618,3.2078,3855.5,3855.3,1.5823]
[1753654410825,3.2078,3855.5,3855.4,2.10091]
[1753654411018,3.2078,3855.5,3855.4,2.39021]
[1753654411625,3.7007,3855.5,3855.4,2.39021]
[1753654411823,4.4303,3855.5,3855.4,2.39021]
[1753654412117,3.2078,3855.5,3855.4,2.39021]
[1753654412321,0.2,3855.9,3855.8,1.25676]
[1753654412322,3.4078,3855.9,3855.8,1.25676]
[1753654412526,3.4078,3855.9,3855.8,2.39016]
[1753654412719,4.7999,3855.9,3855.8,1.65066]
[1753654413321,4.7999,3855.9,3855.8,1.94066]
[1753654413518,4.7999,3855.9,3855.8,2.39016]
[1753654414221,1.1575,3855.9,3855.8,2.39016]
[1753654414527,0.5032,3855.9,3855.8,2.39016]
[1753654415726,0.2,3855.9,3855.8,2.39016]
[1753654419426,1.1575,3855.9,3855.8,2.39016]
[1753654420030,1.4225,3855.9,3855.8,2.39016]
[1753654420633,2.11064,3855.9,3855.8,2.39016]
[1753654420938,5.31844,3855.9,3855.8,2.39016]
[1753654421131,5.31844,3855.9,3855.5,0.2893]
[1753654421132,2.1148,3855.6,3855.5,0.2893]
[1753654421337,2.1148,3855.6,3855.5,0.8079]
[1753654422128,1.1271,3855.1,3855.0,2.39026]
[1753654422330,1.3921,3855.1,3855.0,2.39026]
[1753654422532,1.91075,3855.1,3855.0,0.4851]
[1753654422727,2.11485,3855.1,3855.0,0.2893]
[1753654422935,2.11485,3855.1,3854.7,1.39839]
[1753654422936,1.91079,3854.8,3854.7,1.39839]
[1753654423140,1.91079,3854.8,3854.7,1.65079]
[1753654423331,1.3921,3854.8,3854.7,2.39029]
[1753654423838,0.4646,3855.2,3855.1,1.25685]
[1753654424038,3.511,3855.4,3855.3,2.39022]
[1753654424530,3.511,3855.4,3854.8,1.29671]
[1753654424531,3.2078,3855.8,3855.5,1.8716]
[1753654424737,24.591,3855.8,3855.7,2.39017]
[1753654425133,25.2453,3855.8,3855.7,2.39017]
[1753654425332,25.76386,3855.8,3855.7,1.8716]
[1753654425535,26.19846,3855.8,3855.7,1.8716]
[1753654425742,26.19846,3855.8,3855.7,1.4221]
[1753654425931,21.08,3855.8,3855.7,2.39017]
[1753654426632,21.08,3855.8,3855.4,1.29652]
[1753654426633,0.2,3855.9,3855.8,1.25676]
[1753654426834,0.2,3855.9,3855.8,2.39016]
[1753654429038,3.2078,3856.2,3856.1,2.39012]
[1753654429231,0.4646,3857.0,3855.8,8.2078]
[1753654429435,0.63325803,3857.4,3857.3,2.38995]
[1753654429739,1.62934491,3857.4,3857.3,2.38995]
[1753654429929,2.08404491,3857.4,3857.3,2.38995]
[1753654430129,2.25364491,3857.4,3857.3,1.94045]
[1753654430335,2.77198491,3857.4,3857.3,0.2893]
[1753654430532,2.97528491,3857.4,3857.3,0.2893]
[1753654430729,2.25364491,3857.4,3857.3,1.94046]
[1753654430934,23.32964491,3857.4,3857.3,2.38996]
[1753654431234,2.25364491,3857.4,3857.3,1.94046]
[1753654431736,2.08404491,3857.4,3857.3,1.8716]
[1753654431935,0.86154491,3857.4,3857.3,2.38996]
[1753654432436,0.86154491,3857.4,3857.3,2.13756]
[1753654435443,0.86154491,3857.4,3857.3,2.38996]
[1753654435744,2.14768491,3857.4,3857.3,2.38996]
[1753654435938,1.81904491,3857.4,3857.3,2.38996]
[1753654436343,2.06469803,3857.4,3857.3,1.4221]
[1753654436741,1.3224,3857.1,3856.6,0.3946]
[1753654436936,1.14465,3856.6,3856.5,0.3946]
[1753654437240,0.4646,3856.7,3856.6,1.1334]
[1753654437443,0.2033,3857.3,3857.2,1.36247]
[1753654437741,0.16865803,3857.4,3857.3,1.65176]
[1753654438536,0.59405803,3857.4,3857.3,1.65176]
[1753654438943,1.11239803,3857.4,3857.3,0.6839]
[1753654439243,0.51837,3857.2,3857.0,0.2886]
[1753654439445,1.54176927,3857.4,3856.8,0.4215]
[1753654439446,3.2078,3857.3,3857.2,0.51837]
[1753654439641,4.15156,3857.3,3857.2,1.62237]
[1753654439943,0.4254,3856.9,3856.8,0.91232]
[1753654440142,0.4254,3856.9,3856.4,3.2078]
[1753654440143,0.5838,3856.7,3856.5,0.3939]
[1753654440338,0.51845,3856.6,3856.5,0.91235]
[1753654440644,1.10225,3856.6,3856.5,0.6825]
[1753654441040,1.10225,3856.6,3856.5,1.20096]
[1753654441348,1.10225,3856.6,3856.5,0.2886]
[1753654441642,0.4254,3856.4,3856.3,0.6825]
[1753654442045,22.02088,3856.4,3856.3,0.6825]
[1753654442240,0.2033,3856.3,3855.8,0.51855]
[1753654442442,0.2033,3856.3,3855.2,1.2966]
[1753654442443,0.7871,3855.7,3855.5,0.51859]
[1753654442648,0.2033,3855.7,3855.6,0.51858]
[1753654442846,21.2883,3855.7,3855.6,0.51858]
[1753654443044,0.1584,3855.4,3855.2,0.51863]
[1753654443346,0.2033,3855.2,3855.0,0.2886]
[1753654443550,0.2033,3855.2,3855.1,0.51865]
[1753654443848,3.9949,3855.3,3855.2,0.51864]
[1753654444247,3.9949,3855.3,3855.2,0.2886]
[1753654444445,3.9949,3855.3,3854.9,2.80078435]
[1753654444446,0.7871,3855.0,3854.9,2.80078435]
[1753654444650,21.088,3855.0,3854.9,1.62268]
[1753654444852,3.6332,3855.3,3855.2,1.62264]
[1753654445044,24.7472,3855.3,3855.2,1.62264]
[1753654445552,24.9056,3855.3,3855.2,1.20114]
[1753654446546,24.9056,3855.3,3855.2,0.6825]
[1753654446744,24.9056,3855.3,3855.2,1.20114]
[1753654448554,21.103,3855.3,3855.2,1.62264]
[1753654449643,0.4254,3855.7,3855.6,0.51858]
[1753654449850,3.2078,3855.9,3855.8,1.62256]
[1753654451547,21.096,3856.0,3855.9,0.51854]
[1753654451749,21.096,3856.0,3855.9,1.62254]
[1753654451946,21.096,3856.0,3400.0,0.86739771]
[1753654451947,0.4254,3856.4,3855.8,0.2886]
[1753654452253,0.4254,3856.4,3856.3,1.62249]
[1753654452553,21.5644,3856.4,3856.3,1.62249]
[1753654452853,21.7228,3856.4,3856.3,1.62249]
[1753654453056,25.1339,3856.4,3856.3,0.51849]
[1753654453256,24.3468,3856.4,3856.2,0.51849]
[1753654453457,0.7871,3856.3,3856.2,0.51849]
[1753654453651,21.9301,3856.3,3856.2,0.51849]
[1753654455155,21.9301,3856.3,3856.2,0.80709]
[1753654455357,22.4408,3856.3,3856.2,0.80709]
[1753654456049,22.2375,3856.3,3856.2,0.80709]
[1753654456250,22.2375,3856.3,3856.2,1.20099]
[1753654457058,22.2375,3856.3,3856.2,1.38959]
[1753654457355,1.0945,3856.7,3856.6,1.38955]
[1753654457551,22.0551,3856.7,3856.6,2.11235]
[1753654457854,21.7448,3856.7,3856.6,1.81105]
[1753654458055,21.5434,3856.7,3856.6,1.62245]
[1753654458650,21.118,3856.7,3856.6,1.62245]
[1753654459057,21.5434,3856.7,3856.6,1.62245]
[1753654459455,0.7871,3856.6,3856.5,0.51846]
[1753654459852,0.51849,3856.4,3856.3,0.51848]
[1753654460056,25.63439,3856.4,3856.3,0.51848]
[1753654460457,0.5185,3856.3,3856.2,0.5185]
[1753654460659,1.3056,3856.3,3856.2,0.5185]
[1753654460859,1.30564,3856.1,3856.0,0.51852]
[1753654461154,22.42364,3856.1,3856.0,0.51852]
[1753654461556,22.42364,3856.1,3855.6,1.58504]
[1753654461557,0.51856,3856.0,3855.9,0.51853]
[1753654461761,1.30566,3856.0,3855.9,0.51853]
[1753654461964,4.51346,3856.0,3855.9,0.51853]
[1753654462161,0.51862,3855.4,3855.3,0.51861]
[1753654462361,21.9111,3855.4,3855.3,0.51862]
[1753654462662,22.42971,3855.4,3855.3,0.51862]
[1753654463064,21.9111,3855.4,3855.3,0.51862]
[1753654463266,22.42971,3855.4,3855.3,0.80722]
[1753654463561,22.42971,3855.4,3854.9,1.71819]
[1753654463562,1.30576,3855.0,3854.9,0.2886]
[1753654463763,22.43676,3855.0,3854.9,0.2886]
[1753654463968,22.43676,3855.0,3854.9,0.80727]
[1753654464263,21.7148,3855.0,3854.9,1.62267]
[1753654464659,0.4254,3855.0,3854.9,1.62267]
[1753654464853,3.2078,3855.1,3855.0,1.62266]
[1753654465063,3.2078,3855.5,3855.4,0.51861]
[1753654465263,3.2078,3855.9,3855.8,0.51856]
[1753654465559,0.4254,3856.6,3855.8,4.01496]
[1753654465764,21.82427608,3856.5,3856.4,1.104]
[1753654465964,22.76814608,3856.5,3856.4,1.104]
[1753654466357,22.76814608,3856.5,3856.4,1.62248]
[1753654466554,22.76814608,3856.5,3856.4,1.104]
[1753654467168,21.7188,3856.5,3856.4,1.62248]
[1753654467367,21.5604,3856.5,3856.4,1.62248]
[1753654467759,22.07886,3856.5,3856.4,1.62248]
[1753654468266,22.06986,3856.5,3856.4,1.62248]
[1753654468460,22.21446,3856.5,3856.4,0.6825]
[1753654468660,22.21446,3856.5,3856.4,1.20098]
[1753654468856,22.21446,3856.5,3856.4,0.6825]
[1753654469366,22.21446,3856.5,3856.4,1.20098]
[1753654469367,21.696,3856.5,3856.4,1.20098]
[1753654469662,0.437,3857.0,3856.9,0.51841]
[1753654469863,21.562,3857.0,3856.9,1.61231]
[1753654470167,0.7851,3856.9,3856.7,0.51843]
[1753654470364,0.7851,3856.8,3856.7,0.51843]
[1753654470565,4.30777,3857.2,3857.1,0.6628]
[1753654470863,0.7851,3856.9,3856.8,0.82401]
[1753654471268,21.9191,3856.9,3856.8,0.82401]
[1753654471469,1.10003,3856.8,3856.7,0.51842]
[1753654471770,1.10003,3856.8,3856.7,1.18122]
[1753654471771,0.5816,3856.8,3856.7,1.18122]
[1753654472374,3.2078,3857.2,3857.1,0.51838]
[1753654472568,22.22897,3857.2,3857.1,1.18118]
[1753654472873,21.574,3857.2,3857.1,1.61228]
[1753654473571,0.16865803,3857.4,3857.3,1.18116]
[1753654473771,21.30465803,3857.4,3857.3,1.61226]
[1753654474169,21.74165803,3857.4,3857.3,1.61226]
[1753654475068,21.88625803,3857.4,3857.3,1.61226]
[1753654475475,22.40035803,3857.4,3857.3,2.34846]
[1753654475880,23.15009803,3857.4,3857.3,2.34846]
[1753654476176,22.63175803,3857.4,3857.3,2.34846]
[1753654476771,23.00549803,3857.4,3857.3,2.34846]
[1753654476971,23.15009803,3857.4,3857.3,1.399]
[1753654477573,0.95352,3856.9,3856.8,0.87562]
[1753654477778,21.8625,3856.9,3856.3,1.29623]
[1753654477974,0.5141,3856.5,3856.4,2.04298]
[1753654478282,21.6321,3856.5,3856.4,2.34858]
[1753654479374,1.264,3856.3,3856.2,0.82409]
[1753654479679,1.3271,3856.3,3856.2,1.37879]
[1753654480079,1.3271,3856.3,3856.2,2.34859]
[1753654480782,1.84559,3856.3,3856.2,0.3056]
[1753654480971,1.84559,3856.3,3855.9,0.4311]
[1753654480972,1.3271,3856.0,3855.9,1.18134]
[1753654481176,22.4481,3856.0,3855.9,1.61914]
[1753654481478,22.4481,3856.0,3855.9,1.91754]
[1753654481674,22.3035,3856.0,3855.9,2.34864]
[1753654481881,0.9555,3856.3,3856.2,1.8301]
[1753654482078,22.9606,3856.3,3856.2,1.9175]
[1753654482280,22.9606,3856.3,3856.2,2.3486]
[1753654482481,21.115,3856.3,3856.2,2.3486]
[1753654482671,21.8624,3856.3,3856.2,2.3486]
[1753654483078,0.9511,3856.7,3856.6,1.25465]
[1753654483286,21.4204,3856.7,3856.6,2.34855]
[1753654483483,0.51847,3856.5,3856.4,0.51847]
[1753654483775,0.51847,3856.5,3856.4,1.91747]
[1753654483776,1.3271,3856.5,3856.4,1.91747]
[1753654483985,1.3271,3856.5,3856.4,2.34857]
[1753654485683,22.4291,3856.5,3856.4,2.34857]
[1753654486386,22.94756,3856.5,3856.4,1.61907]
[1753654486685,5.05336,3856.5,3856.4,1.61907]
[1753654486886,26.15336,3856.5,3856.4,1.61907]
[1753654487076,26.35686,3856.5,3856.4,0.3056]
[1753654487683,1.3271,3856.2,3856.1,0.8241]
[1753654487885,23.14612,3856.2,3856.1,0.8241]
[1753654488079,23.14612,3856.2,3856.1,0.3056]
[1753654488388,1.26406,3855.9,3855.8,0.87574]
[1753654488686,22.93966,3855.9,3855.8,1.31354]
[1753654488880,1.84568,3855.6,3855.5,0.5547]
[1753654489082,2.0492,3855.5,3855.4,0.8242]
[1753654489283,2.0492,3855.5,3855.4,0.3056]
[1753654489484,1.40871,3855.4,3855.3,0.51862]
[1753654489686,2.04921,3855.4,3855.3,0.82422]
[1753654489890,1.3271,3855.4,3855.3,2.34872]
[1753654490186,1.1825,3855.4,3855.3,2.34872]
[1753654490388,0.7474,3855.4,3855.3,2.34872]
[1753654490591,0.3104,3855.4,3855.3,2.34872]
[1753654491177,0.7474,3855.4,3855.3,2.34872]
[1753654491793,0.51861,3855.5,3855.4,1.25481]
[1753654492094,0.51861,3855.5,3855.4,2.34871]
[1753654492278,1.26601,3855.5,3855.4,2.34871]
[1753654492479,1.46971,3855.5,3855.4,1.8301]
[1753654492685,1.70111,3855.5,3855.4,2.34871]
[1753654492885,1.84571,3855.5,3855.4,1.8301]
[1753654493188,1.84571,3855.5,3855.4,2.34871]
[1753654493490,1.84571,3855.5,3855.4,1.8301]
[1753654494389,1.84571,3855.5,3855.4,2.34871]
[1753654494583,1.1825,3855.5,3855.4,2.34871]
[1753654495492,1.7011,3855.5,3855.4,2.34871]
[1753654495892,1.1825,3855.5,3855.4,2.34871]
[1753654496188,24.3018,3855.6,3855.1,1.29661]
[1753654496189,3.2078,3855.6,3855.5,2.3487]
[1753654496493,24.2728,3855.6,3855.5,2.3487]
[1753654497188,21.065,3855.6,3855.5,2.3487]
[1753654497390,0.437,3856.7,3856.6,1.25465]
[1753654497690,25.2469,3856.7,3856.6,2.34855]
[1753654497888,26.30944,3856.7,3856.6,0.3056]
[1753654498088,25.4566,3856.7,3856.6,1.94105]
[1753654498286,21.088,3856.7,3856.6,2.37745]
[1753654498484,3.2078,3857.1,3856.6,2.37745]
[1753654498689,3.2078,3857.1,3857.0,2.3689]
[1753654498892,24.3048,3857.1,3857.0,2.3689]
[1753654499092,24.5917,3857.1,3857.0,2.3689]
[1753654499289,25.0235,3857.1,3857.0,2.3689]
[1753654499489,21.097,3857.1,3857.0,2.3689]
[1753654500390,21.26072267,3857.4,3857.3,1.25646]
[1753654500599,23.71658865,3857.4,3857.3,1.4141]
[1753654500789,23.19824865,3857.4,3857.3,2.36886]
[1753654500985,23.19824865,3857.4,3857.3,1.93246]